bitfinex-derivatives/quotes_SOLF0:USTF0_20241026
["timestamp","ask_amount","ask_price","bid_price","bid_amount"]
[1729966513162,2.944,170.03,169.98,2.9448]
[1729966515851,2.9442,170.02,169.96,2.9451]
[1729966518153,2.9442,170.02,169.94,1.2399]
[1729966518355,2.9442,170.02,169.97,2.945]
[1729966518758,4.96,170.05,169.94,1.2399]
[1729966519056,2.9444,170.01,169.94,1.2399]
[1729966519449,4.96,170.05,169.94,1.2399]
[1729966519654,2.9445,170.0,169.94,1.2399]
[1729966520149,2.9445,170.0,169.95,2.9453]
[1729966521853,2.9448,169.99,169.94,4.1853]
[1729966523162,2.9449,169.98,169.94,4.1853]
[1729966523559,2.9449,169.98,169.94,1.2399]
[1729966523861,2.9449,169.98,169.93,2.9457]
[1729966530659,4.96,170.01,169.89,6.256]
[1729966530971,4.78,170.04,169.89,6.256]
[1729966531359,2.9441,170.03,169.98,2.9448]
[1729966532863,4.78,170.04,169.95,2.5078]
[1729966533167,4.78,170.07,169.96,1.2218]
[1729966533370,4.78,170.08,169.96,1.2218]
[1729966533872,2.9436,170.06,170.0,2.9445]
[1729966535669,2.9436,170.06,169.96,1.2218]
[1729966535868,2.9436,170.06,170.01,2.9443]
[1729966537074,2.9437,170.05,170.01,2.9443]
[1729966545695,2.9437,170.05,170.02,2.9442]
[1729966547790,2.9437,170.05,169.96,6.0018]
[1729966548794,2.9437,170.05,170.01,2.9443]
[1729966550998,2.9439,170.04,170.0,2.9445]
[1729966551196,4.78,170.08,169.96,1.2218]
[1729966551395,4.78,170.07,169.96,1.2218]
[1729966551591,2.9445,170.0,169.96,4.1669]
[1729966552700,2.9445,170.0,169.97,2.945]
[1729966555398,2.9445,170.0,169.96,1.2218]
[1729966555703,2.9449,169.98,169.95,5.4531]
[1729966559091,2.945,169.98,169.95,5.4531]
[1729966559293,2.98468608,170.02,169.94,2.9455]
[1729966559803,2.9446,170.0,169.94,2.9455]
[1729966560000,4.64,169.99,169.94,2.9455]
[1729966560504,4.64,169.99,169.9,2.5741]
[1729966560999,2.9455,169.95,169.9,2.5741]
[1729966561195,2.9455,169.95,169.92,2.9459]
[1729966561703,4.64,169.99,169.9,2.5741]
[1729966561704,4.64,169.99,169.91,2.946]
[1729966562707,2.9451,169.97,169.93,2.9457]
[1729966563109,4.64,169.99,169.9,2.5741]
[1729966563413,4.64,169.99,169.95,2.9453]
[1729966564010,4.64,169.99,169.9,2.5741]
[1729966564212,4.64,169.99,169.96,2.9451]
[1729966565598,4.64,169.99,169.95,2.9453]
[1729966568017,4.64,169.99,169.91,5.09571053]
[1729966568219,7.5848,169.99,169.94,2.9454]
[1729966568420,2.9448,169.99,169.94,2.9454]
[1729966568720,7.5848,169.99,169.94,2.9454]
[1729966569111,4.64,169.99,169.9,2.5741]
[1729966569614,2.9454,169.95,169.9,5.5203]
[1729966570614,2.9454,169.95,169.83,131.16944935]
[1729966570615,4.64,169.95,169.83,131.16944935]
[1729966570917,4.64,169.95,169.84,5.09648458]
[1729966571117,4.64,169.95,169.85,5.09648458]
[1729966571317,2.9465,169.89,169.84,2.9473]
[1729966572315,2.9468,169.87,169.8,4.64]
[1729966572515,2.9468,169.87,169.81,5.09438706]
[1729966572715,2.9468,169.87,169.82,5.09438706]
[1729966573005,2.9466,169.88,169.83,8.04178706]
[1729966573215,4.64,169.9,169.83,2.9474]
[1729966573618,2.9466,169.88,169.83,2.9474]
[1729966575118,2.947,169.86,169.82,2.9476]
[1729966575320,4.64,169.9,169.8,4.64]
[1729966575719,4.64,169.9,169.81,5.08887667]
[1729966575922,4.64,169.9,169.8,4.64]
[1729966576116,4.64,169.9,169.81,5.088793]
[1729966576311,2.9468,169.87,169.83,2.9473]
[1729966577014,2.9468,169.87,169.84,2.9473]
[1729966578223,4.64,169.9,169.8,4.64]
[1729966578412,2.9469,169.87,169.8,4.64]
[1729966578917,2.9469,169.87,169.8,5.08449198]
[1729966579118,2.9469,169.87,169.8,9.72449198]
[1729966579318,2.9469,169.87,169.84,2.9472]
[1729966580818,4.64,169.9,169.84,2.9472]
[1729966581017,2.9466,169.88,169.84,2.9472]
[1729966581938,4.64,169.9,169.82,2.9476]
[1729966582117,4.64,169.9,169.8,4.64]
[1729966582418,2.9469,169.87,169.83,2.9474]
[1729966584716,2.9465,169.89,169.85,2.947]
[1729966585113,4.64,169.9,169.85,2.947]
[1729966586222,2.9465,169.89,169.85,2.947]
[1729966587216,7.5863,169.9,169.8,4.64]
[1729966587821,4.64,169.9,169.8,4.64]
[1729966588122,2.9464,169.89,169.85,2.947]
[1729966591223,4.64,169.9,169.86,2.9468]
[1729966591522,4.56,169.96,169.84,4.56]
[1729966591722,4.56,169.96,169.85,2.4769]
[1729966592323,2.9457,169.94,169.89,2.9463]
[1729966592524,4.56,169.96,169.89,2.9463]
[1729966592830,2.9456,169.94,169.89,2.9463]
[1729966593335,2.9456,169.94,169.86,1.2046]
[1729966594532,2.9456,169.94,169.89,2.9462]
[1729966594928,7.5056,169.94,169.89,2.9462]
[1729966595628,4.56,169.94,169.86,1.2046]
[1729966596317,7.5057,169.94,169.88,2.9465]
[1729966596521,7.5057,169.94,169.86,1.2046]
[1729966596522,4.56,169.94,169.86,1.2046]
[1729966597028,2.9458,169.93,169.89,2.9463]
[1729966597530,7.5056,169.94,169.9,2.9462]
[1729966598329,2.9458,169.93,169.89,2.9464]
[1729966600436,4.56,169.94,169.86,1.2046]
[1729966600628,2.92154507,169.93,169.85,2.4769]
[1729966601629,2.9463,169.9,169.86,2.9468]
[1729966601931,2.92154507,169.93,169.85,2.4769]
[1729966602335,2.9463,169.9,169.86,2.9469]
[1729966602533,7.5063,169.9,169.86,2.9469]
[1729966602922,2.9466,169.88,169.84,2.9471]
[1729966603627,2.9466,169.88,169.83,2.9473]
[1729966603936,2.9466,169.88,169.82,1.2806]
[1729966604133,2.9466,169.88,169.85,2.947]
[1729966609734,2.9468,169.87,169.84,2.9472]
[1729966609940,4.56,169.9,169.83,1.3105]
[1729966610235,4.56,169.9,169.78,5.8218]
[1729966610440,4.56,169.9,169.82,2.9475]
[1729966611231,4.56,169.9,169.81,2.9477]
[1729966611428,2.9471,169.85,169.81,2.9477]
[1729966613440,4.56,169.86,169.81,2.9477]
[1729966613737,2.9473,169.84,169.81,2.9477]
[1729966614543,4.56,169.86,169.78,1.2618]
[1729966615040,4.56,169.86,169.76,1.192]
[1729966615242,4.56,169.86,169.76,4.1406]
[1729966616744,2.948,169.81,169.76,4.1406]
[1729966617042,2.92154507,169.93,169.76,1.192]
[1729966617241,4.54,169.92,169.76,1.192]
[1729966617439,23.5604,169.97,169.76,1.192]
[1729966617440,4.54,169.91,169.81,2.9477]
[1729966617640,4.54,169.9,169.81,2.9477]
[1729966617848,2.9469,169.87,169.77,4.54]
[1729966618138,4.54,169.86,169.77,4.54]
[1729966618352,4.54,169.86,169.78,2.5369]
[1729966618738,7.487,169.86,169.82,2.9476]
[1729966620046,2.99516193,169.93,169.78,2.5369]
[1729966620346,4.54,169.92,169.78,7.61700558]
[1729966620543,4.54,169.91,169.79,5.08010558]
[1729966620940,4.54,169.91,169.8,5.08010558]
[1729966621142,4.54,169.91,169.78,2.5369]
[1729966621143,2.9459,169.92,169.88,2.9465]
[1729966621343,7.4859,169.92,169.82,1.2395]
[1729966622145,4.54,169.92,169.89,2.9463]
[1729966622546,4.54,169.92,169.85,4.54]
[1729966622745,4.54,169.92,169.86,2.5163]
[1729966622935,4.54,169.92,169.9,2.9461]
[1729966623444,4.54,169.95,169.86,2.5163]
[1729966623648,4.54,169.94,169.88,2.9465]
[1729966624041,2.9459,169.92,169.88,2.9465]
[1729966624950,2.9459,169.92,169.86,2.5163]
[1729966625148,2.9459,169.92,169.89,2.9464]
[1729966626248,4.54,169.94,169.86,2.5163]
[1729966626249,7.4856,169.94,169.9,2.9461]
[1729966626444,7.4856,169.94,169.86,2.5163]
[1729966626943,7.4856,169.94,169.88,2.9465]
[1729966627144,2.9456,169.94,169.86,2.5163]
[1729966628153,2.9456,169.94,169.9,2.9461]
[1729966628340,4.54,169.95,169.86,2.5163]
[1729966628545,4.54,169.95,169.87,5.0913492]
[1729966628745,4.54,169.95,169.92,2.9459]
[1729966629451,2.9454,169.95,169.92,2.9459]
[1729966629847,57.24,169.99,169.92,2.9459]
[1729966629848,4.54,169.97,169.92,2.9459]
[1729966630448,2.9452,169.96,169.92,2.9459]
[1729966631449,2.9452,169.96,169.93,2.9457]
[1729966633445,2.9451,169.97,169.93,2.9457]
[1729966636146,4.54,169.98,169.89,8.03835246]
[1729966636147,2.9458,169.93,169.89,8.03835246]
[1729966636343,2.93718461,170.02,169.88,1.1948]
[1729966636549,17.67,170.0,169.88,1.1948]
[1729966636746,2.946,169.92,169.88,1.1948]
[1729966637153,4.54,169.93,169.88,1.1948]
[1729966638049,4.54,169.93,169.9,2.9462]
[1729966638657,7.4857,169.93,169.89,2.9464]
[1729966649272,7.4857,169.93,169.88,1.1948]
[1729966649273,4.54,169.93,169.88,1.1948]
[1729966649468,2.9464,169.89,169.86,1.2697]
[1729966650660,2.9466,169.88,169.85,2.947]
[1729966650972,4.54,169.93,169.81,4.54]
[1729966651172,4.54,169.93,169.84,2.9472]
[1729966651575,4.54,169.93,169.85,2.9471]
[1729966651874,4.54,169.93,169.81,4.54]
[1729966652066,2.9467,169.88,169.84,2.9472]
[1729966653173,2.9467,169.88,169.81,4.54]
[1729966653374,2.9465,169.89,169.86,2.9469]
[1729966654171,2.946,169.92,169.88,2.9464]
[1729966654380,2.95503646,170.0,169.85,4.54]
[1729966654571,4.54,169.99,169.86,8.2848]
[1729966654869,2.9453,169.96,169.92,2.9458]
[1729966655270,2.9448,169.99,169.95,2.9453]
[1729966655470,7.4848,169.99,169.95,2.9453]
[1729966655678,7.4848,169.99,169.91,4.54]
[1729966655679,4.54,169.99,169.91,4.54]
[1729966655974,2.945,169.98,169.94,2.9455]
[1729966658170,4.54,169.99,169.92,1.1965]
[1729966658375,2.945,169.97,169.92,4.1423]
[1729966659176,2.9453,169.96,169.92,4.1423]
[1729966662174,2.9457,169.93,169.92,1.1965]
[1729966662377,4.54,169.99,169.92,1.1965]
[1729966662767,2.9457,169.94,169.86,2.5333]
[1729966663072,2.9457,169.94,169.87,5.7324]
[1729966664273,2.9457,169.94,169.91,2.946]
[1729966664977,4.54,169.93,169.74,131.23471406]
[1729966665176,22.21,169.93,169.75,8.95192098]
[1729966665481,22.21,169.93,169.76,5.09412098]
[1729966665668,25.17240269,169.93,169.77,5.09412098]
[1729966665875,2.96240269,169.93,169.78,5.09412098]
[1729966666078,4.54,169.92,169.79,5.09412098]
[1729966666278,4.54,169.92,169.76,4.54]
[1729966666476,2.9466,169.89,169.84,2.9472]
[1729966666783,4.54,169.88,169.84,2.9472]
[1729966668478,7.4866,169.88,169.84,2.9472]
[1729966669283,4.54,169.88,169.78,5.09277036]
[1729966669579,4.54,169.88,169.76,4.54]
[1729966669783,2.9472,169.85,169.8,2.948]
[1729966669981,4.54,169.84,169.8,2.948]
[1729966670182,4.54,169.84,169.77,5.09333001]
[1729966670386,4.54,169.84,169.76,4.54]
[1729966670684,7.4873,169.84,169.8,2.9479]
[1729966671983,7.4873,169.84,169.76,4.54]
[1729966671984,7.4873,169.84,169.81,2.9478]
[1729966676482,7.4873,169.84,169.76,5.08938281]
[1729966676787,2.9475,169.83,169.8,2.9479]
[1729966677582,2.9478,169.82,169.78,2.9482]
[1729966678179,2.9478,169.82,169.79,2.9481]
[1729966679183,4.54,169.84,169.75,3.8578]
[1729966679785,4.54,169.84,169.77,2.9484]
[1729966680288,2.9479,169.81,169.77,2.9484]
[1729966681593,4.54,169.84,169.75,3.8578]
[1729966681887,4.54,169.84,169.76,5.08634294]
[1729966682280,2.9474,169.84,169.8,2.9479]
[1729966682488,7.4874,169.84,169.8,2.9479]
[1729966682897,7.4874,169.84,169.77,2.9484]
[1729966683195,7.4874,169.84,169.75,13.48393355]
[1729966683391,7.4874,169.84,169.75,8.3978]
[1729966683693,7.4874,169.84,169.81,2.9478]
[1729966684192,4.54,169.84,169.75,2.5756]
[1729966684794,2.9483,169.78,169.75,2.5756]
[1729966685002,4.54,169.78,169.75,2.5756]
[1729966685200,7.4884,169.78,169.75,2.5756]
[1729966687282,4.54,169.78,169.76,2.9486]
[1729966688893,5.8927,169.9,169.75,2.5756]
[1729966688894,4.54,169.81,169.75,2.5756]
[1729966689092,17.67,169.93,169.75,2.5756]
[1729966689291,17.67,169.91,169.75,2.5756]
[1729966689495,63.1308,169.95,169.75,2.5756]
[1729966689694,4.54,169.94,169.83,2.9473]
[1729966689997,4.54,169.93,169.75,2.5756]
[1729966690191,2.9468,169.87,169.75,2.5756]
[1729966690497,4.54,169.86,169.75,2.5756]
[1729966690698,7.487,169.86,169.82,2.9475]
[1729966691395,7.487,169.86,169.83,2.9474]
[1729966691396,4.54,169.86,169.83,2.9474]
[1729966691591,4.54,169.86,169.77,4.54]
[1729966691801,4.54,169.86,169.78,1.2433]
[1729966692100,2.9468,169.87,169.83,2.9474]
[1729966692298,4.54,169.87,169.78,1.2433]
[1729966692595,7.4868,169.87,169.78,1.2433]
[1729966693497,7.4868,169.87,169.82,2.9475]
[1729966693700,4.54,169.87,169.82,2.9475]
[1729966693893,4.54,169.87,169.78,1.2433]
[1729966694595,2.9471,169.85,169.78,1.2433]
[1729966694998,2.9471,169.85,169.81,2.9477]
[1729966696703,2.947,169.86,169.82,2.9475]
[1729966696907,4.54,169.87,169.78,1.2433]
[1729966697200,4.54,169.87,169.83,2.9473]
[1729966697201,7.4869,169.87,169.83,2.9473]
[1729966697400,4.54,169.87,169.83,2.9473]
[1729966698498,2.947,169.86,169.83,2.9473]
[1729966701505,4.54,169.87,169.78,1.2433]
[1729966701802,2.9471,169.85,169.81,2.9477]
[1729966702506,2.9471,169.85,169.82,2.9476]
[1729966718215,4.54,169.87,169.78,6.33122167]
[1729966718522,4.54,169.87,169.78,1.2433]
[1729966719421,2.9477,169.82,169.79,2.9481]
[1729966720820,4.54,169.87,169.78,1.2433]
[1729966721021,2.9476,169.83,169.8,2.9479]
[1729966737430,2.9476,169.83,169.81,5.11130538]
[1729966737630,2.9476,169.83,169.8,2.9479]
[1729966737826,2.9476,169.83,169.81,5.11130538]
[1729966738135,2.9476,169.83,169.8,2.9479]
[1729966738335,2.9476,169.83,169.81,5.11140024]
[1729966738532,2.9476,169.83,169.8,2.9479]
[1729966738735,2.9476,169.83,169.81,5.11166375]
[1729966738937,2.9476,169.83,169.8,2.9479]
[1729966739139,2.9476,169.83,169.81,5.11166375]
[1729966739340,2.9476,169.83,169.8,2.9479]
[1729966739540,2.9476,169.83,169.81,5.11166444]
[1729966739737,2.9476,169.83,169.8,2.9479]
[1729966739942,2.9476,169.83,169.81,5.11147142]
[1729966740145,2.9476,169.83,169.8,2.9479]
[1729966740446,2.9476,169.83,169.81,5.11141351]
[1729966740641,2.9476,169.83,169.8,2.9479]
[1729966741046,2.9476,169.83,169.81,5.11149053]
[1729966741336,2.9476,169.83,169.8,2.9479]
[1729966741540,2.9476,169.83,169.81,5.11141568]
[1729966741742,2.9476,169.83,169.8,2.9479]
[1729966741936,2.9476,169.83,169.81,5.11141568]
[1729966742141,2.9476,169.83,169.8,2.9479]
[1729966742341,7.4872,169.85,169.81,5.11148562]
[1729966742533,7.4872,169.85,169.78,1.2433]
[1729966742737,7.4872,169.85,169.79,5.11124542]
[1729966742937,7.4872,169.85,169.82,2.9476]
[1729966743842,2.9474,169.84,169.81,2.9477]
[1729966744349,4.54,169.85,169.78,1.2433]
[1729966744543,2.9475,169.83,169.79,2.948]
[1729966744747,2.9475,169.83,169.8,5.1116945]
[1729966744950,2.9475,169.83,169.78,1.2433]
[1729966745249,2.9475,169.83,169.79,5.11179394]
[1729966745549,2.9478,169.81,169.8,5.11179394]
[1729966745943,4.54,169.85,169.75,2.5756]
[1729966746143,4.54,169.85,169.77,2.9484]
[1729966746346,4.54,169.85,169.78,5.11197858]
[1729966746541,2.94014525,169.84,169.75,2.5756]
[1729966746741,2.94014525,169.84,169.76,5.11252482]
[1729966746948,2.94014525,169.84,169.77,5.11252482]
[1729966747139,2.94014525,169.84,169.75,2.5756]
[1729966747344,2.94014525,169.84,169.76,5.11214576]
[1729966747546,2.9483,169.79,169.76,2.9487]
[1729966747945,2.9484,169.78,169.74,134.19384447]
[1729966748145,4.54,169.8,169.72,1.3107]
[1729966748347,4.54,169.8,169.75,5.11119658]
[1729966748545,4.54,169.8,169.73,5.11119658]
[1729966748849,4.54,169.8,169.67,8.3818]
[1729966749147,2.9488,169.76,169.71,2.9494]
[1729966749346,7.4888,169.76,169.71,2.9494]
[1729966749553,7.4888,169.76,169.67,8.3818]
[1729966749945,7.4888,169.76,169.69,2.9498]
[1729966750146,7.4888,169.76,169.67,8.3818]
[1729966750646,7.4888,169.76,169.72,2.9493]
[1729966751249,4.54,169.76,169.72,2.9493]
[1729966751752,4.54,169.76,169.67,8.3818]
[1729966752453,4.54,169.76,169.73,2.9492]
[1729966755753,4.54,169.76,169.67,8.3818]
[1729966755951,4.54,169.79,169.67,8.3818]
[1729966756151,4.54,169.79,169.68,5.9]
[1729966756352,4.54,169.79,169.67,8.3818]
[1729966756649,4.54,169.79,169.78,2.9482]
[1729966756855,4.54,169.81,169.72,4.54]
[1729966757060,4.54,169.83,169.73,2.5861]
[1729966757252,4.54,169.84,169.74,5.898]
[1729966757450,4.54,169.84,169.74,7.1074]
[1729966759754,362.9193,169.85,169.74,7.1074]
[1729966761251,362.9193,169.85,169.84,2.9473]
[1729966762952,362.9193,169.85,169.8,1.2124]
[1729966763150,365.8664,169.85,169.82,2.9476]
[1729966763350,365.8664,169.85,169.8,1.2124]
[1729966763749,362.9193,169.85,169.8,1.2124]
[1729966763949,2.9474,169.84,169.8,1.2124]
[1729966765262,2.9474,169.84,169.81,2.9477]
[1729966775879,2.9474,169.84,169.74,1.2094]
[1729966775880,362.9193,169.85,169.74,1.2094]
[1729966776067,362.9193,169.85,169.75,1.2947]
[1729966777279,2.9481,169.8,169.77,2.9485]
[1729966788480,4.54,169.81,169.75,1.2947]
[1729966788682,2.9482,169.79,169.75,1.2947]
[1729966789889,4.54,169.81,169.75,1.2947]
[1729966790186,2.948,169.8,169.75,1.2947]
[1729966791083,2.948,169.8,169.77,2.9485]
[1729966797588,4.54,169.81,169.75,1.2947]
[1729966797778,4.54,169.81,169.74,1.2094]
[1729966798181,2.9485,169.78,169.75,2.9488]
[1729966798586,4.54,169.81,169.69,1.3035]
[1729966798792,2.9486,169.77,169.73,2.9491]
[1729966799293,4.54,169.77,169.69,7.1359]
[1729966799594,2.9489,169.75,169.72,2.9492]
[1729966799978,2.9487,169.76,169.73,2.9492]
[1729966802783,7.4885,169.77,169.74,2.9489]
[1729966805397,4.54,169.77,169.69,2.5959]
[1729966805995,2.9485,169.78,169.74,2.9489]
[1729966806691,2.9485,169.77,169.74,2.9489]
[1729966808302,2.9488,169.76,169.73,2.9491]
[1729966808788,2.9488,169.76,169.74,2.949]
[1729966808989,2.9489,169.75,169.69,2.5959]
[1729966809495,4.54,169.75,169.69,2.5959]
[1729966810288,2.9493,169.73,169.7,2.9497]
[1729966810696,4.54,169.75,169.69,2.5959]
[1729966811295,2.9493,169.73,169.7,2.9497]
[1729966813304,2.9491,169.74,169.71,2.9495]
[1729966815504,2.87873753,169.84,169.69,7.1359]
[1729966815700,4.54,169.83,169.69,7.1359]
[1729966815910,4.54,169.82,169.69,7.1359]
[1729966816106,4.54,169.82,169.7,5.8994]
[1729966816704,4.54,169.82,169.79,2.948]
[1729966817011,17.71,169.91,169.79,2.948]
[1729966817209,4.54,169.84,169.79,2.948]
[1729966817509,2.9477,169.82,169.78,2.9483]
[1729966818014,2.90931051,169.93,169.75,1.3059]
[1729966818015,20.61931051,169.93,169.75,1.3059]
[1729966818211,4.54,169.84,169.8,2.9478]
[1729966818804,7.4874,169.84,169.8,2.9478]
[1729966819010,4.54,169.84,169.78,2.9483]
[1729966819204,4.54,169.84,169.76,2.45]
[1729966820703,7.46439614,169.84,169.76,2.45]
[1729966820912,7.46439614,169.84,169.75,1.3059]
[1729966821507,2.9483,169.79,169.75,4.2547]
[1729966823708,4.54,169.8,169.75,4.2547]
[1729966823905,2.9489,169.75,169.72,2.9493]
[1729966824209,4.54,169.8,169.7,1.1875]
[1729966824610,4.54,169.8,169.73,2.9491]
[1729966825317,2.9488,169.76,169.73,2.9491]
[1729966828918,7.4888,169.76,169.73,2.9491]
[1729966831317,4.54,169.76,169.72,2.9493]
[1729966831522,2.9489,169.75,169.72,2.9493]
[1729966834221,2.949,169.74,169.71,2.9494]
[1729966834425,4.54,169.76,169.7,1.1875]
[1729966834624,2.9489,169.75,169.72,2.9492]
[1729966835225,2.9489,169.75,169.73,2.9492]
[1729966836421,2.9486,169.77,169.73,2.9492]
[1729966836720,7.4886,169.77,169.73,2.9492]
[1729966836923,7.4886,169.77,169.74,2.9489]
[1729966837227,2.9484,169.78,169.7,1.1875]
[1729966837430,7.4884,169.78,169.7,1.1875]
[1729966838230,7.4884,169.78,169.75,2.9487]
[1729966842234,2.9485,169.77,169.75,2.9487]
[1729966842831,2.9485,169.77,169.74,2.9489]
[1729966848538,4.54,169.78,169.7,1.1875]
[1729966848736,2.9491,169.74,169.71,2.9495]
[1729966849535,2.9491,169.74,169.7,1.1875]
[1729966849740,2.9491,169.74,169.72,2.9493]
[1729966852344,2.9491,169.74,169.71,2.9495]
[1729966853543,2.9491,169.74,169.7,1.1875]
[1729966853750,2.9491,169.74,169.72,2.9493]
[1729966855838,4.54,169.78,169.7,1.1875]
[1729966856042,4.54,169.78,169.7,4.1371]
[1729966856043,2.9492,169.73,169.7,4.1371]
[1729966858248,362.9193,169.85,169.7,1.1875]
[1729966858552,362.9193,169.85,169.71,4.54]
[1729966859051,362.9193,169.85,169.82,2.9476]
[1729966860447,362.9193,169.85,169.8,1.2669]
[1729966860767,360.9441,169.85,169.84,2.9473]
[1729966861052,355.0197,169.85,169.84,2.9473]
[1729966861252,349.0568,169.85,169.84,2.9473]
[1729966861448,347.0819,169.85,169.84,2.9473]
[1729966863855,346.0877,169.85,169.84,2.9473]
[1729966866460,346.0877,169.85,169.84,4.1327]
[1729966871462,346.0877,169.85,169.84,8.6527]
[1729966872660,346.0877,169.85,169.84,4.1327]
[1729966872861,346.0877,169.85,169.84,8.6527]
[1729966886469,346.0877,169.85,169.84,16.79761338]
[1729966895276,346.0877,169.85,169.84,15.61221338]
[1729966906788,346.0877,169.85,169.84,0.972]
[1729966906990,346.0877,169.85,169.72,1.2443]
[1729966907192,8.14491338,169.77,169.73,5.60327433]
[1729966907403,8.14491338,169.78,169.74,4.52]
[1729966908204,349.0348,169.85,169.74,12.66491338]
[1729966908401,8.14491338,169.84,169.78,8.14491338]
[1729966908611,8.14491338,169.84,169.79,4.52]
[1729966909702,346.0877,169.85,169.81,8.14491338]
[1729966909906,346.0877,169.85,169.82,2.9475]
[1729966910206,346.0877,169.85,169.81,8.14491338]
[1729966910903,346.0877,169.85,169.82,2.9475]
[1729966912809,346.0877,169.85,169.81,8.14491338]
[1729966913006,346.0877,169.85,169.82,8.14491338]
[1729966913509,346.0877,169.85,169.84,2.9473]
[1729966917006,346.0877,169.85,169.82,11.09241338]
[1729966917201,346.0877,169.85,169.8,8.14491338]
[1729966917401,8.14491338,169.84,169.8,8.14491338]
[1729966917614,8.14491338,169.84,169.83,2.9475]
[1729966919812,346.0877,169.85,169.83,2.9475]
[1729966920008,354.23261338,169.85,169.83,2.9475]
[1729966922814,354.23261338,169.85,169.8,8.14491338]
[1729966923019,354.23261338,169.85,169.84,2.9473]
[1729966925619,346.0877,169.85,169.74,131.22675428]
[1729966925815,8.14491338,169.81,169.75,4.52]
[1729966926011,8.14491338,169.81,169.75,12.66491338]
[1729966926211,2.484,169.8,169.76,2.9486]
[1729966926417,2.484,169.8,169.75,12.66491338]
[1729966926712,8.14491338,169.79,169.76,2.9486]
[1729966926916,8.14491338,169.79,169.74,131.22675428]
[1729966926917,8.14491338,169.78,169.74,135.74675428]
[1729966927122,8.14491338,169.78,169.74,131.22675428]
[1729966927917,2.9482,169.79,169.71,2.9495]
[1729966927918,8.14491338,169.75,169.71,2.9495]
[1729966928312,8.14491338,169.75,169.7,12.66491338]
[1729966928606,8.14491338,169.75,169.72,2.9493]
[1729966929009,8.14491338,169.75,169.7,4.52]
[1729966929219,8.14491338,169.75,169.71,2.9495]
[1729966933320,219.71042693,169.91,169.7,4.52]
[1729966933520,219.71042693,169.91,169.81,8.14491338]
[1729966933521,1.2786,169.84,169.81,8.14491338]
[1729966933917,1.2786,169.84,169.8,8.14491338]
[1729966934321,1.2786,169.84,169.76,4.52]
[1729966934322,1.2786,169.84,169.77,12.73787365]
[1729966934818,1.2786,169.84,169.82,2.9476]
[1729966935217,1.2786,169.84,169.77,12.73787365]
[1729966935523,1.2786,169.84,169.83,2.9475]
[1729966936024,346.0877,169.85,169.76,4.52]
[1729966936025,346.0877,169.85,169.84,2.9473]
[1729966938322,346.0877,169.85,169.76,4.52]
[1729966938528,12.73787365,169.84,169.81,2.9477]
[1729966938822,12.73787365,169.84,169.76,4.52]
[1729966939025,15.68527365,169.84,169.76,4.52]
[1729966939224,4.52,169.83,169.76,4.52]
[1729966939417,5.7799,169.83,169.76,4.52]
[1729966939623,1.229,169.82,169.79,2.948]
[1729966939823,15.26627365,169.82,169.79,2.948]
[1729966940121,15.26627365,169.82,169.74,4.52]
[1729966940529,15.26627365,169.82,169.8,2.9479]
[1729966941127,15.26627365,169.82,169.79,2.9481]